bitfinex/quotes_SOLUSD_20241115
["timestamp","ask_amount","ask_price","bid_price","bid_amount"]
[1731696331572,4.7442,210.78,210.66,0.09367462]
[1731696331768,4.7439,210.8,210.66,0.09367462]
[1731696331977,81.29051641,210.88,210.66,0.09367462]
[1731696331978,123.22957115,210.87,210.68,0.09367462]
[1731696332197,4.7424,210.86,210.74,0.09367462]
[1731696332366,6.5683052,210.89,210.76,0.21916462]
[1731696332572,4.742,210.88,210.77,4.7445]
[1731696332892,38.65825474,210.83,210.77,43.40275474]
[1731696333789,38.65825474,210.84,210.77,38.65825474]
[1731696333993,38.65825474,210.85,210.78,38.65825474]
[1731696334196,4.742,210.88,210.8,38.65825474]
[1731696334197,38.65825474,210.87,210.8,38.65825474]
[1731696334370,0.4599052,210.89,210.77,0.09367462]
[1731696334575,5.2017052,210.89,210.77,0.09367462]
[1731696334969,0.4599052,210.89,210.79,0.09367462]
[1731696335170,0.4599052,210.89,210.79,23.87055862]
[1731696335371,0.4599052,210.89,210.85,38.65825474]
[1731696335671,0.4599052,210.89,210.86,38.65825474]
[1731696336197,0.4599052,210.89,210.85,43.40085474]
[1731696336371,0.4599052,210.89,210.87,38.65825474]
[1731696336573,0.4599052,210.89,210.88,62.77979336]
[1731696336802,0.4599052,210.89,210.88,82.77979336]
[1731696337595,0.4599052,210.89,210.88,67.52179336]
[1731696337978,0.4599052,210.89,210.85,11.8567]
[1731696338302,0.4599052,210.89,210.85,50.51495474]
[1731696338599,0.4599052,210.89,210.88,38.75192936]
[1731696338772,0.4599052,210.89,210.88,82.77979336]
[1731696339888,0.4599052,210.89,210.88,87.52179336]
[1731696342172,0.4599052,210.89,210.88,87.62179336]
[1731696342799,0.4599052,210.89,210.88,72.68188738]
[1731696343687,23.71834876,211.09,210.93,0.1]
[1731696343688,23.71834876,211.08,210.93,0.1]
[1731696343874,23.71834876,211.08,211.01,23.71834876]
[1731696344075,23.71834876,211.08,210.93,0.1]
[1731696344076,23.71834876,211.07,211.0,23.71834876]
[1731696344292,23.71834876,211.06,210.99,23.71834876]
[1731696344485,23.71834876,211.07,211.0,47.58890738]
[1731696344893,23.71834876,211.04,210.98,23.71834876]
[1731696345477,24.7373,211.09,210.99,28.45784876]
[1731696345478,23.71834876,211.06,210.99,28.45784876]
[1731696345688,23.71834876,211.04,210.97,23.71834876]
[1731696345991,23.71834876,211.0,210.95,16.5915]
[1731696346296,48.45564876,211.09,210.91,0.25098]
[1731696346297,23.71834876,210.98,210.93,4.7408]
[1731696346687,23.71834876,210.97,210.91,4.7413]
[1731696346889,23.71834876,210.98,210.91,40.31294876]
[1731696347280,23.71834876,210.96,210.91,16.5946]
[1731696347902,23.71834876,210.95,210.91,11.8533]
[1731696348081,23.71834876,210.92,210.86,11.8558]
[1731696348274,23.71834876,210.87,210.81,11.8585]
[1731696348506,0.2,210.97,210.81,11.8585]
[1731696348507,23.71834876,210.85,210.81,11.8585]
[1731696348807,0.2,210.97,210.81,11.8585]
[1731696348808,38.61006823,210.84,210.81,11.8585]
[1731696349107,38.61006823,210.87,210.81,11.8585]
[1731696349392,38.61006823,210.86,210.81,11.8585]
[1731696351477,38.61006823,210.87,210.81,11.8585]
[1731696351693,38.61006823,210.87,210.81,16.6021]
[1731696352806,38.61006823,210.82,210.77,4.83797462]
[1731696353094,38.61006823,210.79,210.77,0.09367462]
[1731696353276,38.61006823,210.8,210.77,0.09367462]
[1731696353803,38.61006823,210.79,210.77,0.09367462]
[1731696354285,38.61006823,210.78,210.77,0.09367462]
[1731696357599,38.61006823,210.79,210.77,0.09367462]
[1731696357976,16.3098,210.84,210.77,0.09367462]
[1731696357977,38.61006823,210.78,210.77,0.09367462]
[1731696358182,6.2246,210.85,210.77,0.09367462]
[1731696358494,38.61006823,210.8,210.77,0.09367462]
[1731696358697,38.61006823,210.82,210.77,0.09367462]
[1731696358907,38.61006823,210.8,210.77,0.09367462]
[1731696359205,38.61006823,210.82,210.77,0.09367462]
[1731696359578,38.61006823,210.81,210.77,0.09367462]
[1731696360181,38.61006823,210.8,210.77,0.09367462]
[1731696360384,38.61006823,210.82,210.77,16.69917462]
[1731696360588,38.61006823,210.84,210.79,0.09367462]
[1731696360807,38.61006823,210.83,210.77,16.69917462]
[1731696360975,38.61006823,210.8,210.77,16.69917462]
[1731696361179,0.09367462,210.84,210.77,0.09367462]
[1731696361400,38.61006823,210.87,210.77,0.09367462]
[1731696361987,44.12153862,210.86,210.77,0.09367462]
[1731696362198,38.61006823,210.78,210.77,0.09367462]
[1731696363406,38.61006823,210.85,210.78,23.776884]
[1731696363611,38.61006823,210.83,210.78,23.776884]
[1731696364409,38.61006823,210.83,210.78,28.520884]
[1731696364599,38.61006823,210.83,210.78,4.744]
[1731696364904,38.61006823,210.82,210.78,4.744]
[1731696365133,38.61006823,210.82,210.77,11.95487462]
[1731696365306,38.61006823,210.78,210.77,0.09367462]
[1731696368209,126.18587508,210.78,210.77,0.09367462]
[1731696368584,0.34465462,210.74,210.64,0.09367462]
[1731696368788,38.61006823,210.65,210.64,0.09367462]
[1731696369804,97.22013646,210.65,210.64,0.09367462]
[1731696370199,97.34562646,210.65,210.64,0.09367462]
[1731696370392,121.24800046,210.65,210.64,0.09367462]
[1731696370997,132.34597508,210.65,210.64,0.09367462]
[1731696371397,132.05230046,210.65,210.64,0.09367462]
[1731696371716,132.24597508,210.65,210.64,0.09367462]
[1731696373095,148.64907508,210.65,210.64,0.09367462]
[1731696373301,259.94907508,210.65,210.64,0.09367462]
[1731696375118,230.38087754,210.65,210.64,0.09367462]
[1731696377297,230.38087754,210.65,210.46,11.8784]
[1731696377298,0.34465462,210.59,210.46,11.8784]
[1731696377597,23.82596946,210.48,210.46,11.8784]
[1731696377899,23.82596946,210.49,210.44,11.1617]
[1731696378102,23.82596946,210.5,210.44,11.1617]
[1731696378311,23.82596946,210.49,210.44,11.1617]
[1731696379398,23.82596946,210.49,210.44,23.0415]
[1731696379599,4.7499,210.53,210.44,23.0415]
[1731696379600,23.82596946,210.53,210.46,43.82596946]
[1731696379920,23.82596946,210.53,210.47,23.82596946]
[1731696380221,23.82596946,210.57,210.5,23.82596946]
[1731696380425,23.82596946,210.6,210.53,23.82596946]
[1731696380722,6.6106,210.7,210.53,23.82596946]
[1731696380723,4.7467,210.67,210.53,44.027864]
[1731696380903,23.82596946,210.62,210.55,23.82596946]
[1731696381527,23.82596946,210.62,210.56,4.7492]
[1731696381703,23.82596946,210.59,210.54,16.6232]
[1731696381900,23.82596946,210.57,210.52,4.75]
[1731696382417,23.82596946,210.58,210.52,4.75]
[1731696382620,23.82596946,210.61,210.53,47.60285346]
[1731696382826,23.82596946,210.6,210.53,47.60285346]
[1731696383026,23.82596946,210.58,210.53,23.776884]
[1731696383518,23.82596946,210.6,210.53,47.60285346]
[1731696383820,23.82596946,210.6,210.54,16.6238]
[1731696384026,23.82596946,210.58,210.54,16.6238]
[1731696384204,23.82596946,210.56,210.5,16.6308]
[1731696384405,23.82596946,210.54,210.5,21.3813]
[1731696385409,23.82596946,210.55,210.5,33.2577]
[1731696385806,23.82596946,210.54,210.5,33.2577]
[1731696386017,23.82596946,210.52,210.5,11.8764]
[1731696386311,23.82596946,210.51,210.5,11.8764]
[1731696386513,23.82596946,210.51,210.46,16.6299]
[1731696386715,23.82596946,210.48,210.46,16.6299]
[1731696387005,4.7487,210.58,210.46,16.6299]
[1731696387006,23.82596946,210.5,210.46,16.6299]
[1731696387820,23.82596946,210.51,210.46,16.6299]
[1731696388020,23.82596946,210.52,210.46,16.6299]
[1731696388218,23.82596946,210.53,210.46,40.45586946]
[1731696388526,23.82596946,210.51,210.46,16.6299]
[1731696389805,23.82596946,210.52,210.46,16.6299]
[1731696390027,23.82596946,210.51,210.46,16.6299]
[1731696390206,23.82596946,210.5,210.46,16.6299]
[1731696390405,23.82596946,210.53,210.47,20.0]
[1731696391105,23.82596946,210.52,210.47,20.0]
[1731696391305,23.82596946,210.51,210.48,4.751]
[1731696391532,23.82596946,210.53,210.48,16.6286]
[1731696391730,23.82596946,210.54,210.48,16.6286]
[1731696392107,23.82596946,210.55,210.48,40.45456946]
[1731696392307,43.370854,210.65,210.5,23.82596946]
[1731696392308,23.82596946,210.57,210.5,23.82596946]
[1731696392508,23.82596946,210.61,210.54,23.82596946]
[1731696392803,4.7471,210.66,210.54,23.82596946]
[1731696393638,23.82596946,210.65,210.58,23.82596946]
[1731696394012,23.82596946,210.68,210.61,23.82596946]
[1731696394211,23.82596946,210.67,210.6,23.82596946]
[1731696394423,23.82596946,210.68,210.61,47.60285346]
[1731696395405,23.82596946,210.69,210.64,20.0]
[1731696395903,23.82596946,210.7,210.63,43.82596946]
[1731696396108,23.82596946,210.69,210.63,20.0]
[1731696396343,23.82596946,210.69,210.64,16.6159]
[1731696396510,23.82596946,210.75,210.67,43.82596946]
[1731696396711,8.53980719,210.77,210.71,23.82596946]
[1731696396929,8.53980719,210.77,210.72,23.82596946]
[1731696397116,8.53980719,210.77,210.71,23.82596946]
[1731696398133,8.53980719,210.77,210.72,4.7456]
[1731696398830,8.53980719,210.77,210.72,16.6096]
[1731696399032,23.82596946,210.79,210.72,40.43556946]
[1731696399236,23.82596946,210.81,210.74,24.17062408]
[1731696399437,23.82596946,210.83,210.76,23.82596946]
[1731696399730,23.82596946,210.81,210.74,23.82596946]
[1731696400227,23.82596946,210.81,210.75,4.7449]
[1731696400436,23.82596946,210.8,210.75,4.7449]
[1731696401118,23.82596946,210.81,210.75,4.7449]
[1731696401419,23.82596946,210.83,210.76,47.60285346]
[1731696401619,23.82596946,210.85,210.78,23.82596946]
[1731696401817,4.7421,210.88,210.76,23.776884]
[1731696401818,23.82596946,210.82,210.76,23.776884]
[1731696402025,23.82596946,210.81,210.77,4.7445]
[1731696402215,23.82596946,210.82,210.77,4.7445]
[1731696402411,23.82596946,210.83,210.77,16.6057]
[1731696403126,23.82596946,210.82,210.77,16.6057]
[1731696403336,23.82596946,210.81,210.77,16.6057]
[1731696403508,23.82596946,210.78,210.72,11.8637]
[1731696403822,0.09367462,210.79,210.67,11.8667]
[1731696404027,20.21916462,210.77,210.65,4.747]
[1731696404242,23.82596946,210.67,210.65,4.747]
[1731696404416,23.82596946,210.68,210.65,4.747]
[1731696404616,23.82596946,210.69,210.65,16.615]
[1731696404819,38.66582183,210.68,210.65,16.615]
[1731696405027,38.66582183,210.69,210.65,16.615]
[1731696405216,38.66582183,210.67,210.65,16.615]
[1731696405426,38.66582183,210.72,210.65,55.28082183]
[1731696406018,38.66582183,210.73,210.66,58.66582183]
[1731696406218,38.66582183,210.72,210.66,20.0]
[1731696406539,38.66582183,210.71,210.67,4.7467]
[1731696407452,38.66582183,210.76,210.7,38.75949645]
[1731696407743,38.66582183,210.75,210.68,38.66582183]
[1731696407925,0.09367462,210.81,210.67,16.6136]
[1731696408439,0.09367462,210.81,210.67,50.53272183]
[1731696408440,38.66582183,210.74,210.67,50.53272183]
[1731696409142,38.66582183,210.73,210.67,11.8669]
[1731696409521,38.66582183,210.74,210.67,55.27942183]
[1731696410037,38.66582183,210.73,210.67,16.6136]
[1731696410245,38.66582183,210.7,210.67,11.8669]
[1731696410425,38.66582183,210.76,210.62,15.4907]
[1731696410426,38.66582183,210.68,210.63,4.7475]
[1731696410617,38.66582183,210.76,210.63,4.7475]
[1731696410618,38.66582183,210.66,210.63,4.7475]
[1731696410932,38.66582183,210.68,210.63,16.6166]
[1731696411245,38.66582183,210.67,210.63,16.6166]
[1731696411615,38.66582183,210.68,210.63,16.6166]
[1731696411822,38.66582183,210.7,210.64,62.44270583]
[1731696412035,38.66582183,210.71,210.64,62.44270583]
[1731696412241,38.66582183,210.7,210.64,23.776884]
[1731696412823,38.66582183,210.71,210.66,4.7469]
[1731696413026,38.66582183,210.69,210.66,4.7469]
[1731696414220,38.66582183,210.7,210.66,4.7469]
[1731696414430,38.66582183,210.7,210.66,16.6143]
[1731696414743,38.66582183,210.75,210.68,38.66582183]
[1731696414918,38.66582183,210.7,210.67,23.776884]
[1731696415118,38.66582183,210.69,210.66,16.6143]
[1731696415933,38.66582183,210.76,210.64,4.7472]
[1731696415934,38.66582183,210.68,210.64,4.7472]
[1731696416141,38.66582183,210.66,210.62,20.2384]
[1731696416322,38.66582183,210.65,210.62,20.2384]
[1731696417038,0.12549,210.75,210.61,11.8698]
[1731696417039,38.66582183,210.64,210.61,11.8698]
[1731696417224,38.66582183,210.64,210.61,16.6179]
[1731696417419,38.66582183,210.63,210.59,11.017]
[1731696417665,38.66582183,210.63,210.59,4.7483]
[1731696417852,38.66582183,210.61,210.57,16.6212]
[1731696418021,38.66582183,210.59,210.55,4.7493]
[1731696418338,38.66582183,210.58,210.55,4.7493]
[1731696418541,4.7478,210.63,210.53,11.8747]
[1731696418542,38.66582183,210.56,210.53,11.8747]
[1731696418733,38.66582183,210.55,210.53,11.8747]
[1731696419243,38.66582183,210.59,210.53,55.29042183]
[1731696419448,38.66582183,210.6,210.53,55.29042183]
[1731696419755,38.66582183,210.61,210.54,62.44270583]
[1731696420123,38.66582183,210.64,210.57,38.66582183]
[1731696420334,38.66582183,210.61,210.57,11.872]
[1731696420947,4.7472,210.65,210.57,11.872]
[1731696421333,38.66582183,210.58,210.53,4.7498]
[1731696421643,43.41302183,210.65,210.53,43.41562183]
[1731696421644,38.66582183,210.6,210.53,43.41562183]
[1731696421825,38.66582183,210.61,210.54,38.66582183]
[1731696422020,38.66582183,210.63,210.56,38.66582183]
[1731696422250,7.43148899,210.73,210.54,24.22153862]
[1731696422425,4.7451,210.74,210.55,64.49183862]
[1731696422631,4.7451,210.74,210.61,0.25098]
[1731696422825,4.745,210.75,210.63,24.027864]
[1731696423031,4.745,210.75,210.66,20.0]
[1731696423331,38.66582183,210.75,210.68,38.66582183]
[1731696423526,38.66582183,210.77,210.71,38.66582183]
[1731696423732,38.66582183,210.72,210.66,38.66582183]
[1731696424050,0.09367462,210.77,210.54,38.76582183]
[1731696424236,0.09367462,210.75,210.6,23.776884]
[1731696424427,4.7451,210.74,210.61,4.7481]
[1731696424925,4.7451,210.74,210.62,0.34465462]
[1731696425443,38.66582183,210.68,210.62,59.01047645]
[1731696425632,38.66582183,210.67,210.62,23.902374]
[1731696425826,38.66582183,210.66,210.63,4.7476]
[1731696426156,38.66582183,210.68,210.63,4.7476]
[1731696426329,38.66582183,210.7,210.63,43.41342183]
[1731696426653,38.66582183,210.68,210.63,24.7476]
[1731696426841,23.79318583,210.68,210.63,24.7476]
[1731696427333,23.79318583,210.66,210.63,4.7476]
[1731696427650,23.79318583,210.64,210.59,4.7484]
[1731696427850,23.79318583,210.62,210.59,4.7484]
[1731696428025,23.79318583,210.64,210.59,4.7484]
[1731696428225,23.79318583,210.67,210.6,23.79318583]
[1731696428425,23.79318583,210.68,210.61,23.79318583]
[1731696428844,6.345,210.74,210.61,23.79318583]
[1731696428845,23.79318583,210.67,210.61,23.79318583]
[1731696429224,23.79318583,210.67,210.62,16.6175]
[1731696429443,23.79318583,210.7,210.63,23.79318583]
[1731696429645,23.79318583,210.72,210.66,23.79318583]
[1731696429947,23.79318583,210.76,210.69,23.79318583]
[1731696430162,23.79318583,210.75,210.68,23.79318583]
[1731696430346,4.7433,210.82,210.67,20.34465462]
[1731696430647,23.79318583,210.78,210.71,23.79318583]
[1731696430853,4.7433,210.82,210.74,23.79318583]
[1731696430854,23.79318583,210.81,210.74,23.79318583]
[1731696431355,23.79318583,210.75,210.7,16.6112]
[1731696431656,23.79318583,210.76,210.7,11.8652]
[1731696431834,111.4,210.85,210.7,16.6112]
[1731696432030,23.79318583,210.74,210.7,16.6112]
[1731696432443,23.79318583,210.75,210.7,16.6112]
[1731696432751,23.79318583,210.74,210.7,16.6112]
[1731696433126,23.79318583,210.73,210.7,11.8652]
[1731696433327,23.79318583,210.71,210.65,11.8674]
[1731696433544,23.79318583,210.68,210.65,16.6146]
[1731696433751,23.79318583,210.69,210.65,16.6146]
[1731696434047,23.79318583,210.67,210.65,11.8674]
[1731696434223,23.79318583,210.66,210.6,11.8704]
[1731696434430,23.79318583,210.63,210.6,16.6187]
[1731696435047,23.79318583,210.64,210.58,28.54178583]
[1731696435633,23.79318583,210.66,210.6,23.79318583]
[1731696436046,23.79318583,210.69,210.63,23.79318583]
[1731696436554,4.7456,210.72,210.59,20.09367462]
[1731696436555,23.79318583,210.67,210.6,23.79318583]
[1731696436743,23.79318583,210.66,210.61,23.776884]
[1731696436934,23.79318583,210.68,210.61,47.57006983]
[1731696437256,23.79318583,210.67,210.62,4.7478]
[1731696437554,23.79318583,210.67,210.62,16.6175]
[1731696438339,23.79318583,210.68,210.62,16.6175]
[1731696438558,23.79318583,210.69,210.62,40.41068583]
[1731696438756,23.79318583,210.71,210.64,67.57006983]
[1731696439057,23.79318583,210.75,210.68,23.79318583]
[1731696439462,23.79318583,210.7,210.66,20.0]
[1731696439665,23.79318583,210.69,210.64,43.776884]
[1731696439844,23.79318583,210.7,210.64,43.776884]
[1731696440040,23.79318583,210.73,210.67,43.79318583]
[1731696440262,21.4242,210.82,210.7,23.79318583]
[1731696440563,21.4242,210.82,210.65,0.34465462]
[1731696440564,23.79318583,210.78,210.71,40.40358583]
[1731696441063,23.79318583,210.77,210.71,16.6104]
[1731696441236,23.79318583,210.74,210.71,11.8646]
[1731696442362,23.79318583,210.76,210.71,16.6104]
[1731696443160,23.79318583,210.78,210.71,40.40358583]
[1731696443364,23.79318583,210.76,210.71,16.6104]
[1731696444444,23.79318583,210.75,210.71,16.6104]
[1731696444649,23.79318583,210.76,210.71,16.6104]
[1731696445347,23.79318583,210.75,210.71,16.6104]
[1731696445766,11.8563,210.86,210.71,35.65778583]
[1731696445954,23.79318583,210.82,210.75,23.79318583]
[1731696446272,23.79318583,210.81,210.74,23.79318583]
[1731696446469,23.79318583,210.83,210.76,47.57006983]
[1731696446765,23.79318583,210.8,210.73,23.79318583]
[1731696447063,23.79318583,210.77,210.72,20.0]
[1731696447255,23.79318583,210.76,210.72,20.0]
[1731696447449,23.79318583,210.77,210.72,20.0]
[1731696447643,23.79318583,210.77,210.73,4.7454]
[1731696448673,23.79318583,210.78,210.73,16.6089]
[1731696449250,23.79318583,210.74,210.71,4.7457]
[1731696449674,23.79318583,210.75,210.71,4.7457]
[1731696449970,23.79318583,210.75,210.71,16.6103]
[1731696451045,23.79318583,210.74,210.71,11.8646]
[1731696451246,23.79318583,210.72,210.69,4.7461]
[1731696451441,23.79318583,210.72,210.67,16.6132]
[1731696451665,23.79318583,210.71,210.67,16.6132]
[1731696452070,23.79318583,210.69,210.63,18.2942]
[1731696452270,23.79318583,210.64,210.63,11.8689]
[1731696452571,23.79318583,210.66,210.61,4.7479]
[1731696453064,4.7456,210.72,210.6,11.8708]
[1731696453065,23.79318583,210.63,210.6,11.8708]
[1731696453471,23.79318583,210.62,210.6,11.8708]
[1731696453649,23.79318583,210.61,210.6,11.8708]
[1731696454167,23.79318583,210.61,210.56,4.7492]
[1731696455450,23.79318583,210.61,210.56,16.6223]
[1731696455646,4.7473,210.65,210.56,11.8731]
[1731696455647,23.79318583,210.59,210.56,11.8731]
[1731696455960,23.79318583,210.58,210.56,11.8731]
[1731696456143,23.79318583,210.59,210.56,11.8731]
[1731696456348,23.79318583,210.61,210.56,16.6223]
[1731696456547,116.0465,210.68,210.51,11.8754]
[1731696456548,23.79318583,210.57,210.51,11.8754]
[1731696456857,23.79318583,210.52,210.44,4.7519]
[1731696457045,0.1,210.6,210.44,4.7519]
[1731696457046,23.79318583,210.5,210.44,4.7519]
[1731696457367,23.79318583,210.5,210.44,28.54508583]
[1731696457666,23.79318583,210.53,210.46,40.42298583]
[1731696458091,23.79318583,210.53,210.47,20.0]
[1731696458460,23.79318583,210.54,210.47,43.79318583]
[1731696459353,23.79318583,210.53,210.47,20.0]
[1731696459778,23.79318583,210.53,210.48,4.751]
[1731696460150,23.79318583,210.52,210.46,40.42288583]
[1731696460351,23.79318583,210.5,210.46,16.6297]
[1731696460575,23.79318583,210.5,210.46,11.8784]
[1731696461074,23.79318583,210.47,210.41,35.67448583]
[1731696461467,23.79318583,210.43,210.41,11.8813]
[1731696461647,23.79318583,210.44,210.41,11.8813]
[1731696461853,23.79318583,210.48,210.41,11.8813]
[1731696462149,23.79318583,210.46,210.41,11.8813]
[1731696462557,0.12549,210.5,210.41,11.8813]
[1731696462868,23.79318583,210.45,210.41,11.8813]
[1731696463051,23.79318583,210.46,210.41,11.8813]
[1731696463251,23.79318583,210.47,210.41,35.67448583]
[1731696463471,23.79318583,210.5,210.43,23.79318583]
[1731696463861,23.79318583,210.5,210.42,20.0]
[1731696464076,23.79318583,210.52,210.45,23.79318583]
[1731696464298,23.79318583,210.54,210.47,23.79318583]
[1731696464577,23.79318583,210.58,210.52,23.79318583]
[1731696464756,6.5525,210.64,210.46,84.50903862]
[1731696464757,4.7476,210.63,210.46,84.50903862]
[1731696464956,23.79318583,210.61,210.46,84.50903862]
[1731696465175,23.79318583,210.58,210.52,23.79318583]
[1731696465480,23.79318583,210.56,210.5,23.79318583]
[1731696465773,23.79318583,210.56,210.49,23.79318583]
[1731696465979,23.79318583,210.55,210.49,23.79318583]
[1731696466170,23.79318583,210.58,210.51,23.79318583]
[1731696466476,23.79318583,210.57,210.5,23.79318583]
[1731696467660,23.79318583,210.58,210.52,23.79318583]
[1731696467976,23.79318583,210.59,210.52,23.79318583]
[1731696468278,23.79318583,210.61,210.54,23.79318583]
[1731696468599,23.79318583,210.55,210.5,20.0]
[1731696468882,4.7492,210.56,210.47,20.0]
[1731696469078,4.7492,210.56,210.44,11.8793]
[1731696469079,0.09367462,210.55,210.44,11.8793]
[1731696469259,0.21916462,210.55,210.45,20.0]
[1731696469461,0.21916462,210.55,210.42,4.7522]
[1731696470075,4.7492,210.56,210.42,4.7522]
[1731696470273,23.79318583,210.49,210.42,28.54538583]
[1731696470456,23.79318583,210.5,210.43,23.776884]
[1731696470657,23.79318583,210.51,210.43,47.57006983]
[1731696470963,23.79318583,210.5,210.44,20.0]
[1731696471461,23.79318583,210.51,210.45,4.7517]
[1731696471886,23.79318583,210.5,210.45,4.7517]
[1731696472181,23.79318583,210.51,210.45,4.7517]
[1731696472585,23.79318583,210.46,210.44,20.0]
[1731696472780,23.79318583,210.47,210.43,24.7519]
[1731696472983,23.79318583,210.46,210.42,11.8809]
[1731696473166,23.79318583,210.44,210.4,21.5629]
[1731696473367,23.79318583,210.43,210.39,4.7529]
[1731696473773,23.79318583,210.42,210.39,4.7529]
[1731696473965,0.09367462,210.52,210.37,35.6508]
[1731696473966,23.79318583,210.4,210.37,16.6366]
[1731696474479,0.19367462,210.52,210.36,0.4599052]
[1731696474480,23.79318583,210.38,210.36,0.4599052]
[1731696475073,23.79318583,210.37,210.36,0.4599052]
[1731696475376,23.79318583,210.38,210.36,0.4599052]
[1731696475770,23.79318583,210.37,210.36,0.4599052]
[1731696478996,43.79318583,210.37,210.36,0.4599052]
[1731696479295,67.91472445,210.37,210.36,0.4599052]
[1731696479469,91.70791028,210.37,210.36,0.4599052]
[1731696480471,20.21916462,210.31,210.16,35.68878583]
[1731696480793,23.79318583,210.23,210.17,23.79318583]
[1731696480991,23.79318583,210.23,210.16,11.8956]
[1731696480992,23.79318583,210.26,210.19,23.79318583]
[1731696481198,23.79318583,210.27,210.2,23.79318583]
[1731696481499,39.18808583,210.32,210.19,23.79318583]
[1731696481797,23.79318583,210.3,210.24,23.79318583]
[1731696481996,23.79318583,210.3,210.23,23.79318583]
[1731696482296,23.79318583,210.29,210.23,23.776884]
[1731696482688,23.79318583,210.29,210.24,20.0]
[1731696482991,23.79318583,210.32,210.25,47.69555983]
[1731696483300,23.79318583,210.35,210.29,23.79318583]
[1731696483596,23.79318583,210.35,210.28,67.57006983]
[1731696483970,23.79318583,210.34,210.28,67.57006983]
[1731696484176,23.79318583,210.35,210.28,67.57006983]
[1731696484403,23.79318583,210.37,210.3,23.79318583]
[1731696484570,23.79318583,210.38,210.31,47.57006983]
[1731696484773,23.79318583,210.37,210.31,23.776884]
[1731696485073,23.79318583,210.32,210.26,21.8541]
[1731696485273,0.09367462,210.37,210.2,46.31998583]
[1731696485498,0.21916462,210.33,210.15,22.5268]
[1731696485682,0.09367462,210.29,210.15,22.5268]
[1731696486372,4.7555,210.28,210.15,22.5268]
[1731696486769,23.79318583,210.22,210.15,46.31998583]
[1731696487173,23.79318583,210.25,210.19,23.776884]
[1731696487378,23.79318583,210.24,210.19,23.776884]
[1731696487703,4.7555,210.28,210.19,23.776884]
[1731696487704,23.79318583,210.25,210.19,23.776884]
[1731696487896,23.79318583,210.23,210.19,23.776884]
[1731696488098,23.79318583,210.22,210.19,23.776884]
[1731696488388,23.79318583,210.22,210.15,46.31998583]
[1731696488591,23.79318583,210.22,210.16,23.776884]
[1731696488771,23.79318583,210.22,210.15,46.31998583]
[1731696489698,23.79318583,210.22,210.16,20.0]
[1731696490277,23.79318583,210.21,210.16,20.0]
[1731696490594,23.79318583,210.17,210.14,0.4599052]
[1731696490799,23.79318583,210.15,210.14,0.4599052]
[1731696491403,28.55168583,210.15,210.14,0.4599052]
[1731696492997,48.55168583,210.15,210.14,0.4599052]
[1731696494885,48.77085045,210.15,210.14,0.4599052]
[1731696495902,48.55168583,210.15,210.14,0.4599052]
[1731696496111,23.79318583,210.15,210.14,0.4599052]
[1731696499107,23.79318583,210.25,210.16,20.0]
[1731696499300,23.79318583,210.25,210.19,23.79318583]
[1731696499604,23.79318583,210.23,210.17,23.79318583]
[1731696499803,23.79318583,210.22,210.16,43.79318583]
[1731696500236,23.79318583,210.2,210.14,12.3567052]
[1731696500508,23.79318583,210.19,210.14,0.4599052]
[1731696500887,28.55088583,210.19,210.14,0.4599052]
[1731696501383,23.79318583,210.17,210.14,0.4599052]
[1731696501690,23.79318583,210.15,210.14,0.4599052]
[1731696502485,4.7577,210.19,210.14,0.4599052]
[1731696502486,23.79318583,210.16,210.14,0.4599052]
[1731696502687,23.79318583,210.15,210.14,0.4599052]
[1731696503897,43.79318583,210.15,210.14,0.4599052]
[1731696504102,43.88686045,210.15,210.14,0.4599052]
[1731696504301,67.91472445,210.15,210.14,0.4599052]
[1731696508112,0.34465462,210.12,210.08,8.924]
[1731696508314,67.91472445,210.09,210.08,8.924]
[1731696508621,43.79318583,210.09,210.08,8.924]
[1731696509208,67.91472445,210.09,210.08,8.924]
[1731696509609,90.85832445,210.09,210.08,8.924]
[1731696510206,90.85832445,210.09,210.08,6.3099]
[1731696510410,95.61812445,210.09,210.08,6.3099]
[1731696510795,95.61812445,210.09,210.08,2.6762]
[1731696510994,0.19367462,210.02,209.87,21.4369]
[1731696511188,0.09367462,210.0,209.87,26.2016]
[1731696511516,23.79318583,209.94,209.87,26.2016]
[1731696511721,23.79318583,209.94,209.87,21.4369]
[1731696512203,72.67792445,209.94,209.83,1.905348]
[1731696512405,48.65006045,209.94,209.82,4.7658]
[1731696512707,48.77555045,209.94,209.81,6.1029]
[1731696512907,48.90104045,209.94,209.81,10.8689]
[1731696513095,72.67792445,209.94,209.81,10.8689]
[1731696513825,72.77792445,209.94,209.81,6.1029]